[Event "*** Titled Tuesday 3|2 Blitz (Early)"]
[Site "Chess.com"]
[Date "2016.11.01"]
[Round "7"]
[White "Drags95"]
[Black "fireheart92"]
[Result "0-1"]
[WhiteElo "2449"]
[BlackElo "2570"]
[TimeControl "180+2"]
[EndTime "12:26:31 PDT"]
[Termination "fireheart92 won by resignation"]

1. d4 {[%clk 0:03:01.9]} 1... Nf6 {[%clk 0:03:00.6]} 2. c4 {[%clk 0:03:01]} 2...
g6 {[%clk 0:03:02.2]} 3. Nc3 {[%clk 0:03:02.3]} 3... Bg7 {[%clk 0:03:03.8]} 4.
e4 {[%clk 0:03:03.6]} 4... d6 {[%clk 0:03:05.2]} 5. Nf3 {[%clk 0:03:05.1]} 5...
O-O {[%clk 0:03:06.9]} 6. Be2 {[%clk 0:03:06.7]} 6... e5 {[%clk 0:03:08.5]} 7.
O-O {[%clk 0:03:06.6]} 7... Nc6 {[%clk 0:03:09.9]} 8. d5 {[%clk 0:03:08.1]} 8...
Ne7 {[%clk 0:03:11.5]} 9. b4 {[%clk 0:03:09.6]} 9... Ne8 {[%clk 0:03:11.2]} 10.
c5 {[%clk 0:03:01.7]} 10... f5 {[%clk 0:03:12.2]} 11. a4 {[%clk 0:02:47.7]}
11... Nf6 {[%clk 0:03:11.2]} 12. Ng5 {[%clk 0:02:48.4]} 12... h6 {[%clk
0:03:10.2]} 13. Ne6 {[%clk 0:02:49.7]} 13... Bxe6 {[%clk 0:03:11.6]} 14. dxe6
{[%clk 0:02:51.6]} 14... fxe4 {[%clk 0:03:13.2]} 15. Ba3 {[%clk 0:02:22.8]}
15... d5 {[%clk 0:03:12.9]} 16. b5 {[%clk 0:02:24.1]} 16... c6 {[%clk
0:03:14.2]} 17. a5 {[%clk 0:02:10.7]} 17... d4 {[%clk 0:03:10.3]} 18. Na4 {[%clk
0:02:09.5]} 18... d3 {[%clk 0:03:10.9]} 19. Bg4 {[%clk 0:02:10.7]} 19... cxb5
{[%clk 0:03:03.6]} 20. Nc3 {[%clk 0:02:11.5]} 20... a6 {[%clk 0:03:04.7]} 21.
Re1 {[%clk 0:02:07.8]} 21... Qd4 {[%clk 0:03:05.7]} 22. c6 {[%clk 0:01:39.8]}
22... b4 {[%clk 0:03:05.5]} 23. cxb7 {[%clk 0:01:38]} 23... Rab8 {[%clk
0:03:06.8]} 0-1

[Event "*** Titled Tuesday 3|2 Blitz (Early)"]
[Site "Chess.com"]
[Date "2016.11.01"]
[Round "7"]
[White "Kawhi_Leonard2"]
[Black "KestutisLabeckas"]
[Result "0-1"]
[WhiteElo "2065"]
[BlackElo "2460"]
[TimeControl "180+2"]
[EndTime "12:27:05 PDT"]
[Termination "KestutisLabeckas won by resignation"]

1. e4 {[%clk 0:03:02]} 1... e6 {[%clk 0:03:00.9]} 2. d4 {[%clk 0:03:02.4]} 2...
d5 {[%clk 0:03:02]} 3. Nd2 {[%clk 0:03:02.9]} 3... dxe4 {[%clk 0:03:02.2]} 4.
Nxe4 {[%clk 0:03:04]} 4... Nd7 {[%clk 0:03:03.7]} 5. Nf3 {[%clk 0:03:04.2]} 5...
Ngf6 {[%clk 0:03:04.5]} 6. Nxf6+ {[%clk 0:03:05.3]} 6... Nxf6 {[%clk 0:03:05.3]}
7. Bd3 {[%clk 0:03:06.9]} 7... c5 {[%clk 0:03:05.9]} 8. dxc5 {[%clk 0:03:03.9]}
8... Bxc5 {[%clk 0:03:05.7]} 9. O-O {[%clk 0:03:04.9]} 9... O-O {[%clk
0:03:01.3]} 10. b3 {[%clk 0:03:05.6]} 10... Qb6 {[%clk 0:02:44.3]} 11. Bb2
{[%clk 0:03:05.6]} 11... Rd8 {[%clk 0:02:44.7]} 12. Qe2 {[%clk 0:03:03.7]} 12...
Bd7 {[%clk 0:02:42.4]} 13. Ne5 {[%clk 0:03:02.3]} 13... Be8 {[%clk 0:02:39.7]}
14. Ng4 {[%clk 0:02:58.5]} 14... Nxg4 {[%clk 0:02:35.8]} 15. Qxg4 {[%clk
0:02:59.5]} 15... Bd4 {[%clk 0:02:36.4]} 16. Bxd4 {[%clk 0:02:20.3]} 16... Rxd4
{[%clk 0:02:38.3]} 17. Qg3 {[%clk 0:02:21.4]} 17... Rad8 {[%clk 0:02:34.2]} 18.
Rad1 {[%clk 0:02:21.9]} 18... Qa5 {[%clk 0:02:32]} 19. a4 {[%clk 0:02:20.6]}
19... Bc6 {[%clk 0:02:14.6]} 20. Qe3 {[%clk 0:02:21.3]} 20... g6 {[%clk
0:02:03.8]} 21. Be2 {[%clk 0:02:15.4]} 21... e5 {[%clk 0:01:46.6]} 22. Rxd4
{[%clk 0:02:12]} 22... exd4 {[%clk 0:01:48.5]} 23. Qe7 {[%clk 0:02:07.8]} 23...
Re8 {[%clk 0:01:48.6]} 0-1

[Event "*** Titled Tuesday 3|2 Blitz (Early)"]
[Site "Chess.com"]
[Date "2016.11.01"]
[Round "7"]
[White "amaidel"]
[Black "jk13"]
[Result "1-0"]
[WhiteElo "2500"]
[BlackElo "2479"]
[TimeControl "180+2"]
[EndTime "12:27:35 PDT"]
[Termination "amaidel won by resignation"]

1. e4 {[%clk 0:03:02]} 1... e5 {[%clk 0:03:01]} 2. Nf3 {[%clk 0:03:02.3]} 2...
Nc6 {[%clk 0:03:02.6]} 3. Bc4 {[%clk 0:03:02.5]} 3... Bc5 {[%clk 0:03:02.8]} 4.
d3 {[%clk 0:03:02.5]} 4... Nf6 {[%clk 0:03:04.1]} 5. O-O {[%clk 0:03:03]} 5...
O-O {[%clk 0:03:05.6]} 6. c3 {[%clk 0:03:04.2]} 6... d5 {[%clk 0:03:06.8]} 7.
exd5 {[%clk 0:03:04.7]} 7... Nxd5 {[%clk 0:03:08.7]} 8. Bb3 {[%clk 0:03:05.8]}
8... Bg4 {[%clk 0:03:09.1]} 9. h3 {[%clk 0:03:06.1]} 9... Bh5 {[%clk 0:03:09.7]}
10. Re1 {[%clk 0:03:05.5]} 10... Nb6 {[%clk 0:03:02.1]} 11. Qe2 {[%clk
0:03:01.1]} 11... Re8 {[%clk 0:02:59.1]} 12. Nbd2 {[%clk 0:03:01]} 12... Bd6
{[%clk 0:02:49.2]} 13. Ne4 {[%clk 0:03:01.4]} 13... h6 {[%clk 0:02:47.9]} 14.
Be3 {[%clk 0:02:53.8]} 14... Bf8 {[%clk 0:02:44.9]} 15. Rad1 {[%clk 0:02:43.6]}
15... a5 {[%clk 0:02:44.4]} 16. Bc2 {[%clk 0:02:42.1]} 16... a4 {[%clk 0:02:44]}
17. Ng3 {[%clk 0:02:40.1]} 17... Bg6 {[%clk 0:02:44.2]} 18. d4 {[%clk
0:02:30.4]} 18... exd4 {[%clk 0:02:41.7]} 19. Nxd4 {[%clk 0:02:30.2]} 19... Nxd4
{[%clk 0:02:38.5]} 20. Rxd4 {[%clk 0:02:30.5]} 20... Qf6 {[%clk 0:02:39.3]} 21.
Bxg6 {[%clk 0:02:27.8]} 21... Qxg6 {[%clk 0:02:41.2]} 22. Rg4 {[%clk 0:02:27.8]}
22... Qe6 {[%clk 0:02:30.8]} 23. Qf3 {[%clk 0:02:26]} 23... Qxa2 {[%clk
0:02:23.3]} 24. Nf5 {[%clk 0:02:22.3]} 24... Kh7 {[%clk 0:02:20.6]} 25. Qg3
{[%clk 0:02:07.4]} 25... g6 {[%clk 0:02:09.4]} 26. Nxh6 {[%clk 0:01:44]} 26...
Bxh6 {[%clk 0:02:07]} 27. Rh4 {[%clk 0:01:44.9]} 27... Rxe3 {[%clk 0:02:07.6]}
28. Qxe3 {[%clk 0:01:45.1]} 1-0

[Event "*** Titled Tuesday 3|2 Blitz (Early)"]
[Site "Chess.com"]
[Date "2016.11.01"]
[Round "7"]
[White "MateusViageiro"]
[Black "Rating-Schmating"]
[Result "0-1"]
[WhiteElo "2261"]
[BlackElo "2259"]
[TimeControl "180+2"]
[EndTime "12:28:21 PDT"]
[Termination "Rating-Schmating won by checkmate"]

1. e4 {[%clk 0:03:01.9]} 1... e6 {[%clk 0:03:00.8]} 2. Qe2 {[%clk 0:03:02]} 2...
c5 {[%clk 0:03:00.2]} 3. f4 {[%clk 0:03:02.4]} 3... b6 {[%clk 0:03:00.5]} 4. Nf3
{[%clk 0:03:01.2]} 4... d6 {[%clk 0:03:01.2]} 5. g3 {[%clk 0:02:58.4]} 5... Bb7
{[%clk 0:02:58.3]} 6. Bg2 {[%clk 0:02:56]} 6... Nf6 {[%clk 0:02:55.8]} 7. d3
{[%clk 0:02:53.8]} 7... Nbd7 {[%clk 0:02:54.8]} 8. O-O {[%clk 0:02:46]} 8... Be7
{[%clk 0:02:54.8]} 9. Kh1 {[%clk 0:02:44.5]} 9... Qc7 {[%clk 0:02:55.5]} 10. c3
{[%clk 0:02:44.6]} 10... O-O {[%clk 0:02:56.2]} 11. Be3 {[%clk 0:02:44.8]} 11...
b5 {[%clk 0:02:52.6]} 12. Nbd2 {[%clk 0:02:43.1]} 12... a5 {[%clk 0:02:44]} 13.
Bg1 {[%clk 0:02:42.9]} 13... b4 {[%clk 0:02:43.7]} 14. Rfe1 {[%clk 0:02:41.7]}
14... Nb6 {[%clk 0:02:41.1]} 15. d4 {[%clk 0:02:41.5]} 15... Ba6 {[%clk
0:02:38.6]} 16. Qd1 {[%clk 0:02:38.7]} 16... bxc3 {[%clk 0:02:38.4]} 17. bxc3
{[%clk 0:02:38.6]} 17... d5 {[%clk 0:02:34.3]} 18. e5 {[%clk 0:02:37.7]} 18...
Nfd7 {[%clk 0:02:35.4]} 19. f5 {[%clk 0:02:31.9]} 19... exf5 {[%clk 0:02:32.8]}
20. e6 {[%clk 0:02:29.5]} 20... fxe6 {[%clk 0:02:30.7]} 21. Rxe6 {[%clk
0:02:30.1]} 21... Bf6 {[%clk 0:02:27.1]} 22. Rb1 {[%clk 0:02:25.8]} 22... Rae8
{[%clk 0:02:21.8]} 23. Qe1 {[%clk 0:02:10.4]} 23... Kf7 {[%clk 0:01:57.5]} 24.
Rxe8 {[%clk 0:01:58.8]} 24... Rxe8 {[%clk 0:01:57]} 25. Qd1 {[%clk 0:01:59.8]}
25... Nc4 {[%clk 0:01:51.8]} 26. Nxc4 {[%clk 0:01:56.8]} 26... Bxc4 {[%clk
0:01:51.8]} 27. dxc5 {[%clk 0:01:57.9]} 27... Nxc5 {[%clk 0:01:51.1]} 28. Nd4
{[%clk 0:01:54.3]} 28... Nd3 {[%clk 0:01:42.4]} 29. Nxf5 {[%clk 0:01:51]} 29...
Re1 {[%clk 0:01:38.2]} 30. Qh5+ {[%clk 0:01:48.3]} 30... g6 {[%clk 0:01:29.2]}
31. Qxh7+ {[%clk 0:01:48.3]} 31... Ke6 {[%clk 0:01:30.5]} 32. Qxc7 {[%clk
0:01:45.9]} 32... Nf2# {[%clk 0:01:30.5]} 0-1

[Event "*** Titled Tuesday 3|2 Blitz (Early)"]
[Site "Chess.com"]
[Date "2016.11.01"]
[Round "7"]
[White "psv98"]
[Black "AlexanderL"]
[Result "1-0"]
[WhiteElo "2629"]
[BlackElo "2547"]
[TimeControl "180+2"]
[EndTime "12:28:25 PDT"]
[Termination "psv98 won by resignation"]

1. d4 {[%clk 0:03:01.9]} 1... e6 {[%clk 0:03:00.2]} 2. c4 {[%clk 0:03:02.2]}
2... b6 {[%clk 0:02:51.8]} 3. g3 {[%clk 0:02:55.4]} 3... Bb7 {[%clk 0:02:52.6]}
4. Nf3 {[%clk 0:02:56.5]} 4... Bb4+ {[%clk 0:02:50.7]} 5. Nc3 {[%clk 0:02:49.3]}
5... Nf6 {[%clk 0:02:48.7]} 6. Bg2 {[%clk 0:02:48.8]} 6... Bxc3+ {[%clk
0:02:44.2]} 7. bxc3 {[%clk 0:02:49.4]} 7... d6 {[%clk 0:02:40.8]} 8. O-O {[%clk
0:02:47.7]} 8... Nbd7 {[%clk 0:02:39.6]} 9. d5 {[%clk 0:02:30.9]} 9... e5 {[%clk
0:02:38.7]} 10. Nh4 {[%clk 0:02:29.2]} 10... Nc5 {[%clk 0:02:38.9]} 11. Qc2
{[%clk 0:02:22.7]} 11... Ba6 {[%clk 0:02:38.5]} 12. f4 {[%clk 0:02:12.1]} 12...
e4 {[%clk 0:02:21.7]} 13. Nf5 {[%clk 0:02:13.1]} 13... O-O {[%clk 0:02:21.7]}
14. Ne3 {[%clk 0:02:14.6]} 14... Re8 {[%clk 0:02:20.6]} 15. Kh1 {[%clk
0:02:11.7]} 15... Nfd7 {[%clk 0:02:20.6]} 16. g4 {[%clk 0:02:08]} 16... Qh4
{[%clk 0:02:18.6]} 17. Bd2 {[%clk 0:02:06.8]} 17... Qe7 {[%clk 0:01:57.3]} 18.
Rg1 {[%clk 0:02:03.3]} 18... Qf8 {[%clk 0:01:58.6]} 19. Raf1 {[%clk 0:01:58.2]}
19... b5 {[%clk 0:01:57.3]} 20. cxb5 {[%clk 0:01:57.6]} 20... Bxb5 {[%clk
0:01:59.2]} 21. c4 {[%clk 0:01:55.4]} 21... Ba4 {[%clk 0:02:00.5]} 22. Qc1
{[%clk 0:01:52.6]} 22... Nb6 {[%clk 0:02:00.2]} 23. g5 {[%clk 0:01:49.2]} 23...
f5 {[%clk 0:01:56.3]} 24. gxf6 {[%clk 0:01:48.9]} 24... Qxf6 {[%clk 0:01:57.4]}
25. Bc3 {[%clk 0:01:48.6]} 25... Qf7 {[%clk 0:01:58.2]} 26. Bh3 {[%clk
0:01:44.4]} 26... g6 {[%clk 0:01:53.9]} 27. Ng4 {[%clk 0:01:44.7]} 27... Kf8
{[%clk 0:01:49.8]} 28. Nh6 {[%clk 0:01:34.3]} 28... Qe7 {[%clk 0:01:41.6]} 29.
f5 {[%clk 0:01:35.5]} 29... g5 {[%clk 0:01:29.4]} 30. Rxg5 {[%clk 0:01:34.9]}
1-0

[Event "*** Titled Tuesday 3|2 Blitz (Early)"]
[Site "Chess.com"]
[Date "2016.11.01"]
[Round "7"]
[White "NDePinEsPeRG"]
[Black "Zaven_ChessMood"]
[Result "1/2-1/2"]
[WhiteElo "2661"]
[BlackElo "2703"]
[TimeControl "180+2"]
[EndTime "12:29:25 PDT"]
[Termination "Game drawn by repetition"]

1. d4 {[%clk 0:03:01.9]} 1... Nf6 {[%clk 0:02:51.8]} 2. c4 {[%clk 0:03:02.6]}
2... c5 {[%clk 0:02:51.8]} 3. d5 {[%clk 0:03:02.9]} 3... b5 {[%clk 0:02:52.7]}
4. cxb5 {[%clk 0:03:03.3]} 4... a6 {[%clk 0:02:54]} 5. Nc3 {[%clk 0:03:04]} 5...
axb5 {[%clk 0:02:51]} 6. Nxb5 {[%clk 0:03:04.9]} 6... Qa5+ {[%clk 0:02:44.4]} 7.
Nc3 {[%clk 0:03:05.7]} 7... g6 {[%clk 0:02:45.4]} 8. Nf3 {[%clk 0:03:02.5]} 8...
Bg7 {[%clk 0:02:45.3]} 9. Nd2 {[%clk 0:03:01.9]} 9... Ba6 {[%clk 0:02:41.4]} 10.
g3 {[%clk 0:02:53.6]} 10... d6 {[%clk 0:02:38.6]} 11. Bg2 {[%clk 0:02:53.8]}
11... O-O {[%clk 0:02:39.4]} 12. O-O {[%clk 0:02:54.4]} 12... Nbd7 {[%clk
0:02:39.9]} 13. Re1 {[%clk 0:02:54.9]} 13... Rfb8 {[%clk 0:02:36.5]} 14. Qc2
{[%clk 0:02:54.2]} 14... Ng4 {[%clk 0:02:34.8]} 15. h3 {[%clk 0:02:52.1]} 15...
Nge5 {[%clk 0:02:34.3]} 16. a4 {[%clk 0:02:50.9]} 16... Nc4 {[%clk 0:02:27.4]}
17. Nxc4 {[%clk 0:02:48.1]} 17... Bxc4 {[%clk 0:02:27.8]} 18. Ra3 {[%clk
0:02:47.7]} 18... Qb4 {[%clk 0:02:19.9]} 19. Kh2 {[%clk 0:02:26.4]} 19... Ne5
{[%clk 0:02:12.6]} 20. f4 {[%clk 0:02:19.2]} 20... Bb3 {[%clk 0:02:04.6]} 21.
Rxb3 {[%clk 0:02:12.5]} 21... Qxb3 {[%clk 0:02:05.5]} 22. Qxb3 {[%clk
0:02:13.4]} 22... Rxb3 {[%clk 0:02:05.9]} 23. fxe5 {[%clk 0:02:14.6]} 23... Bxe5
{[%clk 0:02:06.8]} 24. Rd1 {[%clk 0:02:07.9]} 24... h5 {[%clk 0:02:02.4]} 25. h4
{[%clk 0:02:04.2]} 25... Bxc3 {[%clk 0:02:00.5]} 26. bxc3 {[%clk 0:02:03.2]}
26... Rxc3 {[%clk 0:02:01.5]} 27. Bd2 {[%clk 0:02:02.4]} 27... Rb3 {[%clk
0:01:57.1]} 28. a5 {[%clk 0:02:02.7]} 28... Ra3 {[%clk 0:01:48.1]} 29. Bf3
{[%clk 0:02:01.3]} 29... Rb8 {[%clk 0:01:44.9]} 30. Kg2 {[%clk 0:02:00.6]} 30...
f5 {[%clk 0:01:41.6]} 31. Kf2 {[%clk 0:01:59.1]} 31... Kf7 {[%clk 0:01:38.9]}
32. Rc1 {[%clk 0:01:59.1]} 32... Rb2 {[%clk 0:01:36.5]} 33. Bc3 {[%clk 0:01:58]}
33... Rbb3 {[%clk 0:01:34.9]} 34. Be1 {[%clk 0:01:57.5]} 34... Rb2 {[%clk
0:01:32.9]} 35. Bc3 {[%clk 0:01:48.1]} 35... Rbb3 {[%clk 0:01:33.9]} 36. Bd2
{[%clk 0:01:48.8]} 36... Rb2 {[%clk 0:01:33.4]} 37. Ke1 {[%clk 0:01:47.9]} 37...
Ke8 {[%clk 0:01:29]} 38. Bc3 {[%clk 0:01:47.5]} 38... Rba2 {[%clk 0:01:25.8]}
39. Kf2 {[%clk 0:01:47.4]} 39... Rb3 {[%clk 0:01:24]} 40. Ke1 {[%clk 0:01:31.9]}
40... Rba3 {[%clk 0:01:24.3]} 41. Kf2 {[%clk 0:01:29]} 41... Rb3 {[%clk
0:01:25.3]} 42. Ke1 {[%clk 0:01:29.7]} 42... Rba3 {[%clk 0:01:26.1]} 1/2-1/2

[Event "*** Titled Tuesday 3|2 Blitz (Early)"]
[Site "Chess.com"]
[Date "2016.11.01"]
[Round "7"]
[White "PowerThinking2650"]
[Black "GM_dmitrij"]
[Result "0-1"]
[WhiteElo "2186"]
[BlackElo "2417"]
[TimeControl "180+2"]
[EndTime "12:29:49 PDT"]
[Termination "GM_dmitrij won by resignation"]

1. e4 {[%clk 0:03:01.9]} 1... e5 {[%clk 0:03:00.6]} 2. Nf3 {[%clk 0:03:02.3]}
2... Nc6 {[%clk 0:03:01.8]} 3. d4 {[%clk 0:03:03.5]} 3... exd4 {[%clk
0:03:02.5]} 4. Nxd4 {[%clk 0:03:05]} 4... Nf6 {[%clk 0:03:03.9]} 5. Nxc6 {[%clk
0:03:06]} 5... bxc6 {[%clk 0:03:05.5]} 6. e5 {[%clk 0:03:07.7]} 6... Qe7 {[%clk
0:03:06.9]} 7. Qe2 {[%clk 0:03:09]} 7... Nd5 {[%clk 0:03:08.4]} 8. c4 {[%clk
0:03:10.6]} 8... Nb6 {[%clk 0:03:09.9]} 9. Nc3 {[%clk 0:03:07.1]} 9... Ba6
{[%clk 0:03:09.5]} 10. Qe4 {[%clk 0:03:06.9]} 10... f6 {[%clk 0:03:10.5]} 11.
exf6 {[%clk 0:02:53.9]} 11... Qxe4+ {[%clk 0:03:11.6]} 12. Nxe4 {[%clk
0:02:52.3]} 12... Bxc4 {[%clk 0:03:12.9]} 13. Bxc4 {[%clk 0:02:28.3]} 13... Nxc4
{[%clk 0:03:13.8]} 14. b3 {[%clk 0:02:16.8]} 14... Nd6 {[%clk 0:03:14.8]} 15.
Nxd6+ {[%clk 0:01:52.4]} 15... cxd6 {[%clk 0:03:14.9]} 16. Bb2 {[%clk
0:01:44.4]} 16... gxf6 {[%clk 0:03:15.2]} 17. Bxf6 {[%clk 0:01:45.2]} 17... Rg8
{[%clk 0:03:16.7]} 18. Bh4 {[%clk 0:01:37]} 18... Kf7 {[%clk 0:03:11.4]} 19. O-O
{[%clk 0:01:30]} 19... d5 {[%clk 0:03:10.5]} 20. f4 {[%clk 0:01:24]} 20... a5
{[%clk 0:03:07.2]} 21. Rae1 {[%clk 0:01:11.1]} 21... a4 {[%clk 0:03:04.2]} 22.
Rf3 {[%clk 0:01:05.3]} 22... axb3 {[%clk 0:03:02.1]} 23. axb3 {[%clk 0:01:05.7]}
23... Ra2 {[%clk 0:03:02.6]} 24. Bf2 {[%clk 0:01:04]} 24... Bb4 {[%clk
0:02:48.4]} 25. Rd1 {[%clk 0:00:49.3]} 25... Re8 {[%clk 0:02:43.4]} 26. g4
{[%clk 0:00:41.5]} 26... Ree2 {[%clk 0:02:42.2]} 27. f5 {[%clk 0:00:36]} 27...
Rab2 {[%clk 0:02:33]} 28. Rdd3 {[%clk 0:00:28.8]} 28... Rxf2 {[%clk 0:02:19.8]}
29. Rxf2 {[%clk 0:00:29.6]} 29... Bc5 {[%clk 0:02:21.2]} 30. Rf3 {[%clk
0:00:29.2]} 30... Kf6 {[%clk 0:02:05.2]} 31. h4 {[%clk 0:00:25.7]} 31... h6
{[%clk 0:01:39.9]} 32. g5+ {[%clk 0:00:20.7]} 32... hxg5 {[%clk 0:01:37.8]} 33.
hxg5+ {[%clk 0:00:21.7]} 33... Kxg5 {[%clk 0:01:39.2]} 34. f6 {[%clk 0:00:21.6]}
34... Bxf2+ {[%clk 0:01:39.7]} 35. Rxf2 {[%clk 0:00:22.8]} 35... Rxf2 {[%clk
0:01:40.8]} 0-1

[Event "*** Titled Tuesday 3|2 Blitz (Early)"]
[Site "Chess.com"]
[Date "2016.11.01"]
[Round "7"]
[White "MFBerna"]
[Black "Aygehovit1992"]
[Result "0-1"]
[WhiteElo "2186"]
[BlackElo "2439"]
[TimeControl "180+2"]
[EndTime "12:30:10 PDT"]
[Termination "Aygehovit1992 won by resignation"]

1. e4 {[%clk 0:03:02]} 1... d6 {[%clk 0:03:01.9]} 2. Nf3 {[%clk 0:03:03.1]} 2...
g6 {[%clk 0:03:02.7]} 3. d4 {[%clk 0:03:03.2]} 3... Bg7 {[%clk 0:03:03.9]} 4.
Nc3 {[%clk 0:03:04.5]} 4... a6 {[%clk 0:03:04.4]} 5. Bd3 {[%clk 0:03:04.2]} 5...
b5 {[%clk 0:03:04.9]} 6. O-O {[%clk 0:03:05.4]} 6... Bb7 {[%clk 0:03:05.6]} 7.
Re1 {[%clk 0:03:06.3]} 7... Nd7 {[%clk 0:03:02.9]} 8. a4 {[%clk 0:03:04.7]} 8...
b4 {[%clk 0:03:01.3]} 9. Nb1 {[%clk 0:03:04.9]} 9... Ngf6 {[%clk 0:02:53.6]} 10.
Nbd2 {[%clk 0:03:05.1]} 10... O-O {[%clk 0:02:50.2]} 11. e5 {[%clk 0:02:56.5]}
11... dxe5 {[%clk 0:02:44.9]} 12. dxe5 {[%clk 0:02:57.4]} 12... Ng4 {[%clk
0:02:46]} 13. e6 {[%clk 0:02:54.3]} 13... fxe6 {[%clk 0:02:46.8]} 14. Ne4 {[%clk
0:02:37.7]} 14... Nde5 {[%clk 0:02:42.9]} 15. Nxe5 {[%clk 0:02:32.1]} 15... Nxe5
{[%clk 0:02:41.7]} 16. Nc5 {[%clk 0:02:21.5]} 16... Bd5 {[%clk 0:01:59.4]} 17.
Be4 {[%clk 0:01:20.9]} 17... Bxe4 {[%clk 0:01:56]} 18. Nxe4 {[%clk 0:01:17]}
18... Qxd1 {[%clk 0:01:47.8]} 19. Rxd1 {[%clk 0:01:18.4]} 19... Nc4 {[%clk
0:01:47.2]} 20. c3 {[%clk 0:00:46.1]} 20... bxc3 {[%clk 0:01:43.5]} 21. bxc3
{[%clk 0:00:47.4]} 21... Rfd8 {[%clk 0:01:42.3]} 22. Be3 {[%clk 0:00:30.8]}
22... Rd5 {[%clk 0:01:34.7]} 23. Rdb1 {[%clk 0:00:11.6]} 23... Nxe3 {[%clk
0:01:28.3]} 24. fxe3 {[%clk 0:00:12.5]} 24... Re5 {[%clk 0:01:30]} 25. Nf2
{[%clk 0:00:08.2]} 25... Rxe3 {[%clk 0:01:30.6]} 26. Re1 {[%clk 0:00:03.9]}
26... Rxc3 {[%clk 0:01:23]} 27. Rab1 {[%clk 0:00:02.6]} 27... Bd4 {[%clk
0:01:20.5]} 28. Re2 {[%clk 0:00:03.3]} 28... Rf8 {[%clk 0:01:20.4]} 29. Rf1
{[%clk 0:00:04]} 29... e5 {[%clk 0:01:17.5]} 30. g3 {[%clk 0:00:05.3]} 30...
Rcf3 {[%clk 0:01:18.5]} 31. Kg2 {[%clk 0:00:06.6]} 31... Rxf2+ {[%clk
0:01:19.6]} 32. Rfxf2 {[%clk 0:00:08.2]} 32... Rxf2+ {[%clk 0:01:21.5]} 33. Rxf2
{[%clk 0:00:10.1]} 33... Bxf2 {[%clk 0:01:23.2]} 34. Kxf2 {[%clk 0:00:12]} 34...
Kf7 {[%clk 0:01:24.8]} 0-1

[Event "*** Titled Tuesday 3|2 Blitz (Early)"]
[Site "Chess.com"]
[Date "2016.11.01"]
[Round "7"]
[White "Jungle_Jaguar"]
[Black "HovmoellerHest"]
[Result "1-0"]
[WhiteElo "2328"]
[BlackElo "2268"]
[TimeControl "180+2"]
[EndTime "12:31:04 PDT"]
[Termination "Jungle_Jaguar won by checkmate"]

1. c4 {[%clk 0:02:57.8]} 1... c5 {[%clk 0:02:59.9]} 2. Nc3 {[%clk 0:02:58.8]}
2... Nc6 {[%clk 0:03:00.7]} 3. g3 {[%clk 0:03:00.3]} 3... g6 {[%clk 0:03:01.9]}
4. Bg2 {[%clk 0:03:01.9]} 4... Bg7 {[%clk 0:03:03.5]} 5. d3 {[%clk 0:03:03.5]}
5... d6 {[%clk 0:03:04.8]} 6. e4 {[%clk 0:03:04.6]} 6... e5 {[%clk 0:03:05.6]}
7. Nge2 {[%clk 0:03:05.9]} 7... Nge7 {[%clk 0:03:06.5]} 8. O-O {[%clk
0:03:07.8]} 8... O-O {[%clk 0:03:07.4]} 9. Be3 {[%clk 0:03:07.8]} 9... Rb8
{[%clk 0:03:07]} 10. Rb1 {[%clk 0:03:06.1]} 10... a6 {[%clk 0:03:07.8]} 11. Qd2
{[%clk 0:03:04.1]} 11... b5 {[%clk 0:03:08.2]} 12. b3 {[%clk 0:03:05.1]} 12...
Nd4 {[%clk 0:03:05]} 13. Nd5 {[%clk 0:02:59.9]} 13... Nxd5 {[%clk 0:03:02.7]}
14. cxd5 {[%clk 0:02:54.3]} 14... f5 {[%clk 0:02:56]} 15. Nxd4 {[%clk
0:02:51.1]} 15... cxd4 {[%clk 0:02:48.1]} 16. Bg5 {[%clk 0:02:51.9]} 16... Bf6
{[%clk 0:02:38.4]} 17. Bh6 {[%clk 0:02:51.2]} 17... Rf7 {[%clk 0:02:34.4]} 18.
f4 {[%clk 0:02:48.2]} 18... fxe4 {[%clk 0:02:29.1]} 19. Bxe4 {[%clk 0:02:43.7]}
19... Bh3 {[%clk 0:02:13.3]} 20. Rf2 {[%clk 0:02:34.1]} 20... Qd7 {[%clk
0:01:44.1]} 21. Rc1 {[%clk 0:02:23.2]} 21... Rc8 {[%clk 0:01:41.2]} 22. Rc6
{[%clk 0:02:20.4]} 22... Rxc6 {[%clk 0:00:52.5]} 23. dxc6 {[%clk 0:02:19.2]}
23... Qc8 {[%clk 0:00:54.4]} 24. fxe5 {[%clk 0:02:11.5]} 24... dxe5 {[%clk
0:00:50.8]} 25. a4 {[%clk 0:01:16.8]} 25... bxa4 {[%clk 0:00:50.2]} 26. bxa4
{[%clk 0:01:17.5]} 26... Be6 {[%clk 0:00:39.1]} 27. Qb2 {[%clk 0:01:10.4]} 27...
Bf5 {[%clk 0:00:33.1]} 28. Bd5 {[%clk 0:01:01.2]} 28... Be6 {[%clk 0:00:26.8]}
29. Qb3 {[%clk 0:01:02]} 29... Bxd5 {[%clk 0:00:27.2]} 30. Qxd5 {[%clk
0:01:03.9]} 30... Qd8 {[%clk 0:00:22.8]} 31. Qc4 {[%clk 0:00:50.7]} 31... Qe7
{[%clk 0:00:17.5]} 32. c7 {[%clk 0:00:29.3]} 32... Qxc7 {[%clk 0:00:17.8]} 33.
Qxc7 {[%clk 0:00:29.4]} 33... Rxc7 {[%clk 0:00:18.7]} 34. Rxf6 {[%clk 0:00:31]}
34... Rc3 {[%clk 0:00:17.9]} 35. Rf8# {[%clk 0:00:23]} 1-0

[Event "*** Titled Tuesday 3|2 Blitz (Early)"]
[Site "Chess.com"]
[Date "2016.11.01"]
[Round "7"]
[White "Divertissement"]
[Black "Wolverine_master"]
[Result "1-0"]
[WhiteElo "2342"]
[BlackElo "2071"]
[TimeControl "180+2"]
[EndTime "12:31:05 PDT"]
[Termination "Divertissement won on time"]

1. Nf3 {[%clk 0:03:01.9]} 1... Nf6 {[%clk 0:02:49.2]} 2. c4 {[%clk 0:03:03.1]}
2... e6 {[%clk 0:02:47.3]} 3. g3 {[%clk 0:03:02.3]} 3... Be7 {[%clk 0:02:45.9]}
4. Bg2 {[%clk 0:03:02.8]} 4... d5 {[%clk 0:02:46.9]} 5. d4 {[%clk 0:03:03.3]}
5... O-O {[%clk 0:02:47.3]} 6. O-O {[%clk 0:03:04.9]} 6... dxc4 {[%clk
0:02:45.3]} 7. Qc2 {[%clk 0:03:05.7]} 7... a6 {[%clk 0:02:40]} 8. a4 {[%clk
0:03:06.1]} 8... Nc6 {[%clk 0:02:21.5]} 9. Qxc4 {[%clk 0:03:06.8]} 9... Qd5
{[%clk 0:02:22.1]} 10. Qd3 {[%clk 0:03:04]} 10... Nb4 {[%clk 0:02:21.1]} 11. Qd1
{[%clk 0:03:03.1]} 11... Qh5 {[%clk 0:01:59.5]} 12. Bf4 {[%clk 0:01:47.2]} 12...
Nbd5 {[%clk 0:01:43.7]} 13. Bd2 {[%clk 0:01:48.1]} 13... c5 {[%clk 0:01:10.3]}
14. dxc5 {[%clk 0:01:35.5]} 14... Bxc5 {[%clk 0:01:06.5]} 15. Nc3 {[%clk
0:01:36.9]} 15... Bd7 {[%clk 0:01:05.8]} 16. Qb3 {[%clk 0:01:29.4]} 16... Bc6
{[%clk 0:01:04.8]} 17. Rac1 {[%clk 0:01:26.4]} 17... Ba7 {[%clk 0:00:34.5]} 18.
Na2 {[%clk 0:01:09.8]} 18... Rac8 {[%clk 0:00:13.2]} 19. Nb4 {[%clk 0:01:10.2]}
19... Nxb4 {[%clk 0:00:13.1]} 20. Bxb4 {[%clk 0:01:12.1]} 20... Rfe8 {[%clk
0:00:10.6]} 21. h3 {[%clk 0:01:02.3]} 21... h6 {[%clk 0:00:10.5]} 22. Rfd1
{[%clk 0:00:59.6]} 22... Ne4 {[%clk 0:00:09.6]} 23. Nd4 {[%clk 0:00:50.9]} 23...
Red8 {[%clk 0:00:05.7]} 24. e3 {[%clk 0:00:18.8]} 24... Bd5 {[%clk 0:00:06]} 25.
Qa3 {[%clk 0:00:17.4]} 25... Qg6 {[%clk 0:00:05.4]} 26. Be1 {[%clk 0:00:17.5]}
26... Rxc1 {[%clk 0:00:05.6]} 27. Rxc1 {[%clk 0:00:18.4]} 27... Qf6 {[%clk
0:00:02.6]} 28. Qb4 {[%clk 0:00:17.9]} 1-0